fUST/lending_fUST_20240919
["ID","MTS","AMOUNT","RATE_DAILY","PERIOD"]
[338568109,1726739445698,-500.0,0.00016438,2]
[338568110,1726739445708,-500.0,0.00016438,2]
[338568111,1726739445717,-774.05,0.00016438,2]
[338568112,1726739445727,-500.0,0.00016438,2]
[338568113,1726739445738,-500.0,0.00016438,2]
[338568114,1726739445748,-860.84,0.00016438,2]
[338568115,1726739445759,-9503.67,0.00016438,2]
[338568116,1726739445769,-500.0,0.00016438,2]
[338568117,1726739445779,-454.33808332,0.00016438,2]
[338568118,1726739445788,-500.0,0.00016438,2]
[338568119,1726739445798,-500.0,0.00016438,2]
[338568120,1726739445808,-500.0,0.00016438,2]
[338568121,1726739445817,-923.52,0.00016438,2]
[338568122,1726739445827,-500.0,0.00016438,2]
[338568123,1726739445838,-1671.42,0.00016438,2]
[338568124,1726739445848,-198.901006,0.00016438,2]
[338568125,1726739445862,-1088.58,0.00016438,2]
[338568126,1726739445872,-500.0,0.00016438,2]
[338568127,1726739445882,-500.0,0.00016438,2]
[338568128,1726739445891,-500.67401048,0.00016438,2]
[338568129,1726739445902,-500.0,0.00016438,2]
[338568130,1726739445912,-500.0,0.00016438,2]
[338568131,1726739445921,-198.901006,0.00016438,2]
[338568132,1726739445931,-500.0,0.00016438,2]
[338568133,1726739445941,-500.0,0.00016438,2]
[338568134,1726739445951,-540.71,0.00016438,2]
[338568135,1726739445961,-500.0,0.00016473,2]
[338568136,1726739445971,-500.0,0.00016473,2]
[338568138,1726739445980,-500.0,0.00016473,2]
[338568139,1726739445991,-500.0,0.00016473,2]
[338568140,1726739446000,-500.77493312,0.00016473,2]
[338568142,1726739446060,-464.22077848,0.00016473,2]
[338568143,1726739446069,-500.58397951,0.00016473,2]
[338568145,1726739446079,-500.0,0.00016473,2]
[338568146,1726739446089,-500.0,0.00016473,2]
[338568147,1726739446098,-500.0,0.00016473,2]
[338568148,1726739446108,-501.85661138,0.00016473,2]
[338568149,1726739446117,-500.0,0.00016473,2]
[338568150,1726739446126,-500.0,0.00016473,2]
[338568151,1726739446136,-500.0,0.00016692,2]
[338568152,1726739446145,-500.0,0.00016692,2]
[338568153,1726739446154,-500.0,0.00016692,2]
[338568154,1726739446164,-500.0,0.00016692,2]
[338568155,1726739446175,-500.0,0.00016692,2]
[338568156,1726739446184,-500.0,0.00016692,2]
[338568157,1726739446193,-500.0,0.00016692,2]
[338568158,1726739446203,-500.0,0.00016692,2]
[338568159,1726739446213,-500.0,0.00016692,2]
[338568161,1726739446222,-500.0,0.00016692,2]
[338568163,1726739446232,-500.0,0.00016692,2]
[338568164,1726739446241,-734.16,0.00016692,2]
[338568165,1726739446250,-734.16,0.00016692,2]
[338568166,1726739446261,-734.16,0.00016692,2]
[338568167,1726739446271,-734.16,0.00016692,2]
[338568168,1726739446281,-734.16,0.00016692,2]
[338568169,1726739446290,-734.16,0.00016692,2]
[338568171,1726739446299,-734.16,0.00016692,2]
[338568172,1726739446308,-734.16,0.00016692,2]
[338568173,1726739446318,-734.16,0.00016692,2]
[338568174,1726739446327,-734.16,0.00016692,2]
[338568175,1726739446336,-734.16,0.00016692,2]
[338568176,1726739446345,-734.16,0.00016692,2]
[338568177,1726739446354,-734.16,0.00016692,2]
[338568178,1726739446363,-734.31687186,0.00016692,2]
[338568179,1726739446374,-500.0,0.00016699,2]
[338568180,1726739446383,-500.0,0.00016711,2]
[338568181,1726739446393,-500.0,0.00016711,2]
[338568182,1726739446403,-500.0,0.00016711,2]
[338568183,1726739446413,-500.0,0.00016711,2]
[338568184,1726739446423,-500.0,0.00016711,2]
[338568185,1726739446432,-500.0,0.00016711,2]
[338568186,1726739446441,-235.52800243,0.00016711,2]
[338568187,1726739446451,-37559.86609258,0.00016712,5]
[338568188,1726739446461,-500.0,0.00016712,2]
[338568189,1726739446470,-541.83,0.00016712,2]
[338568190,1726739446480,-501.30842904,0.00016712,2]
[338568191,1726739446489,-500.0,0.00016712,2]
[338568192,1726739446499,-500.0,0.00016712,2]
[338568193,1726739446510,-500.0,0.00016712,2]
[338568194,1726739446519,-215.15605426,0.00016712,2]
[338568195,1726739446529,-500.0,0.00016712,2]
[338568196,1726739446539,-1773.07,0.00016712,2]
[338568197,1726739446548,-616.74859558,0.00016712,2]
[338568198,1726739446558,-1253.16,0.00016712,2]
[338568199,1726739446568,-500.0,0.00016712,2]
[338568200,1726739446577,-523.46,0.00016712,2]
[338568201,1726739446587,-1725.68,0.00016712,2]
[338568202,1726739446596,-500.0,0.00016712,2]
[338568203,1726739446605,-500.0,0.00016712,2]
[338568204,1726739446615,-500.0,0.00016712,2]
[338568205,1726739446624,-500.0,0.00016712,2]
[338568206,1726739446633,-514.55,0.00016712,2]
[338568207,1726739446642,-500.0,0.00016712,2]
[338568208,1726739446652,-500.0,0.00016712,2]
[338568209,1726739446661,-500.0,0.00016712,2]
[338568210,1726739446670,-500.0,0.00016712,2]
[338568211,1726739446679,-500.0,0.00016712,2]
[338568212,1726739446688,-502.02289673,0.00016712,2]
[338568213,1726739446697,-500.0,0.00016712,2]
[338568214,1726739446706,-500.0,0.00016712,2]
[338568215,1726739446716,-1917.23,0.00016712,2]
[338568216,1726739446725,-500.0,0.00016712,2]
[338568217,1726739446735,-1813.82,0.00016712,2]
[338568218,1726739446744,-500.0,0.00016712,2]
[338568219,1726739446753,-500.0,0.00016712,2]
[338568220,1726739446765,-500.0,0.00016712,2]
[338568221,1726739446775,-500.0,0.00016712,2]
[338568222,1726739446783,-500.0,0.00016712,2]
[338568223,1726739446793,-758.63,0.00016712,2]
[338568224,1726739446802,-876.05,0.00016712,2]
[338568225,1726739446811,-870.3,0.00016712,2]
[338568226,1726739446821,-500.0,0.00016712,2]
[338568227,1726739446830,-500.0,0.00016712,2]
[338568228,1726739446840,-1014.89,0.00016712,2]
[338568229,1726739446850,-500.0,0.00016712,2]
[338568230,1726739446862,-500.0,0.00016712,2]
[338568231,1726739446871,-508.5,0.00016712,2]
[338568232,1726739446881,-995.15,0.00016712,2]
[338568233,1726739446890,-972.67,0.00016712,2]
[338568234,1726739446900,-500.0,0.00016712,2]
[338568235,1726739446909,-1109.51,0.00016712,2]
[338568236,1726739446919,-500.0,0.00016712,2]
[338568237,1726739446928,-500.0,0.00016712,2]
[338568238,1726739446939,-500.0,0.00016712,2]
[338568239,1726739446949,-946.29,0.00016712,2]
[338568240,1726739446958,-500.0,0.00016712,2]
[338568241,1726739446968,-1004.81,0.00016712,2]
[338568242,1726739446978,-500.0,0.00016712,2]
[338568243,1726739446987,-151.0,0.00016712,2]
[338568244,1726739446996,-766.47,0.00016712,2]
[338568245,1726739447007,-500.0,0.00016712,2]
[338568246,1726739447016,-151.0,0.00016712,2]
[338568247,1726739447026,-564.43,0.00016712,2]
[338568248,1726739447035,-926.76,0.00016712,2]
[338568249,1726739447044,-774.6,0.00016712,2]
[338568250,1726739447054,-500.0,0.00016712,2]
[338568251,1726739447063,-500.0,0.00016712,2]
[338568252,1726739447072,-500.0,0.00016712,2]
[338568253,1726739447082,-500.0,0.00016712,2]
[338568254,1726739447091,-500.0,0.00016712,2]
[338568255,1726739447100,-549.51,0.00016712,2]
[338568256,1726739447109,-500.76,0.00016712,2]
[338568257,1726739447118,-715.82,0.00016712,2]
[338568258,1726739447127,-500.0,0.00016712,2]
[338568259,1726739447137,-500.0,0.00016712,2]
[338568260,1726739447146,-500.0,0.00016712,2]
[338568261,1726739447155,-500.0,0.00016712,2]
[338568262,1726739447164,-500.0,0.00016712,2]
[338568263,1726739447174,-151.0,0.00016712,2]
[338568264,1726739447184,-500.0,0.00016712,2]
[338568265,1726739447193,-500.0,0.00016712,2]
[338568266,1726739447202,-500.0,0.00016712,2]
[338568267,1726739447212,-500.0,0.00016712,2]
[338568268,1726739447221,-151.0,0.00016712,2]
[338568269,1726739447230,-500.0,0.00016712,2]
[338568270,1726739447239,-502.32566225,0.00016712,2]
[338568271,1726739447249,-500.0,0.00016712,2]
[338568272,1726739447258,-500.0,0.00016712,2]
[338568273,1726739447267,-500.0,0.00016712,2]
[338568274,1726739447277,-500.0,0.00016712,2]
[338568275,1726739447286,-1631.8,0.00016712,2]
[338568276,1726739447295,-1069.83,0.00016712,2]
[338568277,1726739447304,-500.0,0.00016712,2]
[338568278,1726739447313,-500.0,0.00016712,2]
[338568279,1726739447322,-500.0,0.00016712,2]
[338568280,1726739447331,-568.56,0.00016712,2]
[338568281,1726739447341,-500.0,0.00016712,2]
[338568282,1726739447350,-500.0,0.00016712,2]
[338568283,1726739447359,-712.88,0.00016712,2]
[338568284,1726739447369,-2789.7,0.00016712,2]
[338568285,1726739447378,-500.0,0.00016712,2]
[338568286,1726739447387,-151.0,0.00016712,2]
[338568287,1726739447396,-500.0,0.00016712,2]
[338568288,1726739447406,-917.09,0.00016712,2]
[338568289,1726739447415,-500.0,0.00016712,2]
[338568290,1726739447424,-1025.05,0.00016712,2]
[338568291,1726739447433,-500.0,0.00016712,2]
[338568292,1726739447442,-568.07,0.00016712,2]
[338568293,1726739447451,-500.0,0.00016712,2]
[338568294,1726739447461,-500.0,0.00016712,2]
[338568295,1726739447470,-500.0,0.00016712,2]
[338568296,1726739447479,-536.84,0.00016712,2]
[338568297,1726739447488,-793.45,0.00016712,2]
[338568298,1726739447498,-1444.93,0.00016712,2]
[338568299,1726739447507,-957.72,0.00016712,2]
[338568300,1726739447517,-500.0,0.00016712,2]
[338568301,1726739447526,-923.62,0.00016712,2]
[338568302,1726739447535,-1203.94,0.00016712,2]
[338568303,1726739447544,-500.0,0.00016712,2]
[338568304,1726739447555,-500.0,0.00016712,2]
[338568305,1726739447564,-500.0,0.00016712,2]
[338568306,1726739447573,-553.21,0.00016712,2]
[338568307,1726739447583,-826.68,0.00016712,2]
[338568308,1726739447593,-500.0,0.00016712,2]
[338568309,1726739447602,-1089.16,0.00016712,2]
[338568310,1726739447611,-576.45,0.00016712,2]
[338568311,1726739447620,-500.0,0.00016712,2]
[338568312,1726739447629,-500.0,0.00016712,2]
[338568313,1726739447639,-500.0,0.00016712,2]
[338568314,1726739447648,-500.0,0.00016712,2]
[338568315,1726739447659,-500.0,0.00016712,2]
[338568316,1726739447668,-500.0,0.00016712,2]
[338568317,1726739447677,-151.0,0.00016712,2]
[338568318,1726739447686,-500.0,0.00016712,2]
[338568319,1726739447695,-500.0,0.00016712,2]
[338568320,1726739447705,-500.0,0.00016712,2]
[338568321,1726739447714,-500.0,0.00016712,2]
[338568322,1726739447724,-2099.24,0.00016712,2]
[338568323,1726739447733,-864.18,0.00016712,2]
[338568324,1726739447742,-151.0,0.00016712,2]
[338568325,1726739447751,-500.0,0.00016712,2]
[338568326,1726739447762,-1100.84,0.00016712,2]
[338568327,1726739447771,-500.0,0.00016712,2]
[338568328,1726739447780,-500.0,0.00016712,2]
[338568329,1726739447790,-500.0,0.00016712,2]
[338568330,1726739447799,-500.0,0.00016712,2]
[338568331,1726739447809,-1457.96,0.00016712,2]
[338568332,1726739447818,-500.0,0.00016712,2]
[338568333,1726739447827,-500.0,0.00016712,2]
[338568334,1726739447836,-151.0,0.00016712,2]
[338568335,1726739447845,-1549.58,0.00016712,2]
[338568336,1726739447858,-158.97031663,0.00016712,2]
[338568337,1726739447871,-500.0,0.00016712,2]
[338568338,1726739447879,-1199.66,0.00016712,2]
[338568339,1726739447889,-678.68,0.00016712,2]
[338568340,1726739447899,-805.2,0.00016712,2]
[338568341,1726739447910,-1557.42,0.00016712,2]
[338568342,1726739447919,-1377.09,0.00016712,2]
[338568343,1726739447929,-500.0,0.00016712,2]
[338568344,1726739447940,-500.0,0.00016712,2]
[338568345,1726739447949,-501.96747097,0.00016712,2]
[338568346,1726739447960,-987.91,0.00016712,2]
[338568347,1726739447970,-500.0,0.00016712,2]
[338568348,1726739447979,-500.0,0.00016712,2]
[338568349,1726739447990,-500.0,0.00016712,2]
[338568350,1726739448000,-933.28,0.00016712,2]
[338568351,1726739448013,-500.0,0.00016712,2]
[338568352,1726739448026,-964.43,0.00016712,2]
[338568353,1726739448036,-500.0,0.00016712,2]
[338568354,1726739448045,-1516.8,0.00016712,2]
[338568355,1726739448055,-1110.79,0.00016712,2]
[338568356,1726739448065,-817.72,0.00016712,2]
[338568357,1726739448074,-500.0,0.00016712,2]
[338568358,1726739448084,-500.0,0.00016712,2]
[338568359,1726739448094,-2343.82,0.00016712,2]
[338568360,1726739448103,-383.12769975,0.00016712,2]
[338568361,1726739448113,-500.0,0.00016712,2]
[338568362,1726739448122,-500.0,0.00016712,2]
[338568363,1726739448131,-500.0,0.00016712,2]
[338568364,1726739448141,-500.0,0.00016712,2]
[338568365,1726739448150,-500.0,0.00016712,2]
[338568366,1726739448160,-500.0,0.00016712,2]
[338568367,1726739448169,-500.0,0.00016712,2]
[338568368,1726739448178,-500.0,0.00016712,2]
[338568369,1726739448188,-500.0,0.00016712,2]
[338568370,1726739448197,-2360.1,0.00016712,2]
[338568371,1726739448206,-1731.83,0.00016712,2]
[338568372,1726739448215,-500.0,0.00016712,2]
[338568373,1726739448224,-500.0,0.00016712,2]
[338568374,1726739448234,-880.03,0.00016712,2]
[338568375,1726739448243,-500.0,0.00016712,2]
[338568376,1726739448252,-652.74,0.00016712,2]
[338568377,1726739448265,-500.0,0.00016712,2]
[338568378,1726739448275,-500.0,0.00016712,2]
[338568379,1726739448284,-613.1,0.00016712,2]
[338568380,1726739448294,-500.0,0.00016712,2]
[338568381,1726739448303,-500.0,0.00016712,2]
[338568382,1726739448312,-151.0,0.00016712,2]
[338568383,1726739448321,-500.0,0.00016712,2]
[338568384,1726739448330,-151.0,0.00016712,2]
[338568385,1726739448340,-500.0,0.00016712,2]
[338568386,1726739448349,-291.130845,0.00016712,2]
[338568387,1726739448359,-885.45,0.00016712,2]
[338568388,1726739448368,-500.0,0.00016712,2]
[338568389,1726739448378,-500.75781459,0.00016712,2]
[338568390,1726739448387,-1330.87,0.00016712,2]
[338568391,1726739448396,-271.618169,0.00016712,2]
[338568392,1726739448405,-500.0,0.00016712,2]
[338568393,1726739448415,-271.618169,0.00016712,2]
[338568394,1726739448424,-271.618169,0.00016712,2]
[338568395,1726739448433,-271.618169,0.00016712,2]
[338568396,1726739448442,-643.66236891,0.00016712,2]
[338568397,1726739448452,-2829.71,0.00016712,2]
[338568398,1726739448461,-228.4994,0.00016712,2]
[338568399,1726739448471,-1018.6,0.00016712,2]
[338568400,1726739448480,-1268.66,0.00016712,2]
[338568401,1726739448489,-500.0,0.00016712,2]
[338568402,1726739448498,-1994.98,0.00016712,2]
[338568403,1726739448508,-500.0,0.00016712,2]
[338568404,1726739448526,-1142.71,0.00016712,2]
[338568405,1726739448535,-640.01,0.00016712,2]
[338568406,1726739448545,-850.24,0.00016712,2]
[338568407,1726739448554,-500.0,0.00016712,2]
[338568408,1726739448563,-500.0,0.00016712,2]
[338568409,1726739448573,-500.0,0.00016712,2]
[338568410,1726739448582,-500.0,0.00016712,2]
[338568411,1726739448591,-500.0,0.00016712,2]
[338568412,1726739448601,-588.28,0.00016712,2]
[338568413,1726739448611,-1167.6,0.00016712,2]
[338568414,1726739448620,-151.0,0.00016712,2]
[338568415,1726739448629,-151.0,0.00016712,2]
[338568416,1726739448639,-500.0,0.00016712,2]
[338568417,1726739448648,-500.0,0.00016712,2]
[338568418,1726739448657,-500.0,0.00016712,2]
[338568419,1726739448666,-500.0,0.00016712,2]
[338568420,1726739448675,-500.0,0.00016712,2]
[338568421,1726739448684,-672.92,0.00016712,2]
[338568422,1726739448693,-500.0,0.00016712,2]
[338568423,1726739448702,-500.0,0.00016712,2]
[338568424,1726739448712,-1038.41,0.00016712,2]
[338568425,1726739448721,-542.53,0.00016712,2]
[338568426,1726739448730,-500.0,0.00016712,2]
[338568427,1726739448739,-646.08,0.00016712,2]
[338568428,1726739448749,-537.8,0.00016712,2]
[338568429,1726739448760,-151.0,0.00016712,2]
[338568430,1726739448770,-151.0,0.00016712,2]
[338568431,1726739448779,-500.0,0.00016712,2]
[338568432,1726739448788,-522.201644,0.00016712,2]
[338568433,1726739448798,-522.201644,0.00016712,2]
[338568434,1726739448807,-500.0,0.00016712,2]
[338568435,1726739448817,-567.16,0.00016712,2]
[338568436,1726739448826,-151.0,0.00016712,2]
[338568437,1726739448835,-276.055072,0.00016712,2]
[338568438,1726739448845,-500.0,0.00016712,2]
[338568439,1726739448854,-652.31,0.00016712,2]
[338568440,1726739448867,-522.201644,0.00016712,2]
[338568441,1726739448876,-522.201644,0.00016712,2]
[338568442,1726739448885,-500.0,0.00016712,2]
[338568443,1726739448894,-577.86,0.00016712,2]
[338568444,1726739448904,-1396.84,0.00016712,2]
[338568445,1726739448913,-896.63,0.00016712,2]
[338568446,1726739448922,-151.0,0.00016712,2]
[338568447,1726739448932,-151.0,0.00016712,2]
[338568448,1726739448942,-500.0,0.00016712,2]
[338568449,1726739448951,-500.0,0.00016712,2]
[338568450,1726739448960,-500.0,0.00016712,2]
[338568451,1726739448970,-3765.86,0.00016712,2]
[338568452,1726739448979,-151.0,0.00016712,2]
[338568453,1726739448988,-568.37636911,0.00016712,2]
[338568454,1726739448997,-500.0,0.00016712,2]
[338568455,1726739449006,-500.0,0.00016712,2]
[338568456,1726739449018,-500.0,0.00016712,2]
[338568457,1726739449027,-2023.52,0.00016712,2]
[338568458,1726739449037,-779.32,0.00016712,2]
[338568459,1726739449046,-500.0,0.00016712,2]
[338568460,1726739449055,-545.27,0.00016712,2]
[338568461,1726739449065,-500.0,0.00016712,2]
[338568462,1726739449075,-800.8,0.00016712,2]
[338568463,1726739449084,-797.28,0.00016712,2]
[338568464,1726739449093,-500.0,0.00016712,2]
[338568465,1726739449103,-3259.54,0.00016712,2]
[338568466,1726739449112,-500.0,0.00016712,2]
[338568467,1726739449122,-630.54,0.00016712,2]
[338568468,1726739449131,-500.0,0.00016712,2]
[338568469,1726739449140,-500.0,0.00016712,2]
[338568470,1726739449149,-767.84,0.00016712,2]
[338568471,1726739449159,-500.0,0.00016712,2]
[338568472,1726739449168,-500.0,0.00016712,2]
[338568473,1726739449178,-500.0,0.00016712,2]
[338568474,1726739449187,-500.0,0.00016712,2]
[338568475,1726739449196,-746.26,0.00016712,2]
[338568476,1726739449206,-500.0,0.00016712,2]
[338568477,1726739449216,-500.0,0.00016712,2]
[338568478,1726739449225,-572.72,0.00016712,2]
[338568479,1726739449234,-500.0,0.00016712,2]
[338568480,1726739449243,-992.57,0.00016712,2]
[338568481,1726739449253,-500.0,0.00016712,2]
[338568482,1726739449263,-500.0,0.00016712,2]
[338568483,1726739449273,-500.0,0.00016712,2]
[338568484,1726739449283,-500.0,0.00016712,2]
[338568485,1726739449292,-500.0,0.00016712,2]
[338568486,1726739449301,-500.0,0.00016712,2]
[338568487,1726739449311,-2051.78,0.00016712,2]
[338568488,1726739449320,-920.44,0.00016712,2]
[338568489,1726739449330,-500.0,0.00016712,2]
[338568490,1726739449339,-500.0,0.00016712,2]
[338568491,1726739449348,-1192.4,0.00016712,2]
[338568492,1726739449358,-1732.35,0.00016712,2]
[338568493,1726739449368,-500.0,0.00016712,2]
[338568494,1726739449377,-500.0,0.00016712,2]
[338568495,1726739449386,-500.0,0.00016712,2]
[338568496,1726739449396,-536.74,0.00016712,2]
[338568497,1726739449405,-183.327853,0.00016712,2]
[338568498,1726739449414,-500.0,0.00016712,2]
[338568499,1726739449424,-183.327853,0.00016712,2]
[338568500,1726739449434,-2675.83,0.00016712,2]
[338568501,1726739449443,-500.30078167,0.00016712,2]
[338568502,1726739449452,-183.327853,0.00016712,2]
[338568503,1726739449462,-183.327853,0.00016712,2]
[338568504,1726739449471,-1315.48,0.00016712,2]
[338568505,1726739449480,-756.355347,0.00016712,2]
[338568506,1726739449490,-756.355347,0.00016712,2]
[338568507,1726739449499,-500.0,0.00016712,2]
[338568508,1726739449510,-1556.85,0.00016712,2]
[338568509,1726739449520,-756.355347,0.00016712,2]
[338568510,1726739449529,-756.355347,0.00016712,2]
[338568511,1726739449540,-655.33,0.00016712,2]
[338568512,1726739449549,-500.0,0.00016712,2]
[338568513,1726739449558,-500.47,0.00016712,2]
[338568514,1726739449567,-953.98,0.00016712,2]
[338568515,1726739449576,-1056.62,0.00016712,2]
[338568516,1726739449585,-1084.53,0.00016712,2]
[338568517,1726739449594,-500.0,0.00016712,2]
[338568518,1726739449603,-500.0,0.00016712,2]
[338568519,1726739449612,-620.97,0.00016712,2]
[338568520,1726739449622,-151.0,0.00016712,2]
[338568521,1726739449631,-151.0,0.00016712,2]
[338568522,1726739449641,-500.0,0.00016712,2]
[338568523,1726739449650,-531.23,0.00016712,2]
[338568524,1726739449659,-2352.76,0.00016712,2]
[338568525,1726739449668,-1317.99,0.00016712,2]
[338568526,1726739449678,-500.0,0.00016712,2]
[338568527,1726739449687,-328.962833,0.00016712,2]
[338568528,1726739449697,-328.962833,0.00016712,2]
[338568529,1726739449706,-500.0,0.00016712,2]
[338568530,1726739449715,-500.0,0.00016712,2]
[338568531,1726739449724,-310.56825,0.00016712,2]
[338568532,1726739449733,-500.0,0.00016712,2]
[338568533,1726739449742,-310.56825,0.00016712,2]
[338568534,1726739449752,-328.962833,0.00016712,2]
[338568535,1726739449761,-644.15,0.00016712,2]
[338568536,1726739449771,-328.962833,0.00016712,2]
[338568537,1726739449780,-522.58,0.00016712,2]
[338568538,1726739449789,-310.56825,0.00016712,2]
[338568539,1726739449798,-233.08817321,0.00016712,2]
[338568540,1726739449808,-310.56825,0.00016712,2]
[338568541,1726739449817,-1575.09,0.00016712,2]
[338568542,1726739449827,-500.0,0.00016712,2]
[338568543,1726739449836,-151.0,0.00016712,2]
[338568544,1726739449845,-151.0,0.00016712,2]
[338568545,1726739449855,-1117.05,0.00016712,2]
[338568546,1726739449868,-897.52,0.00016712,2]
[338568547,1726739449877,-455.68785366,0.00016712,2]
[338568548,1726739449886,-500.0,0.00016712,2]
[338568549,1726739449895,-500.0,0.00016712,2]
[338568550,1726739449906,-889.78,0.00016712,2]
[338568551,1726739449915,-513.62786954,0.00016712,2]
[338568552,1726739449923,-959.5,0.00016712,2]
[338568553,1726739449932,-1241.74,0.00016712,2]
[338568554,1726739449944,-696.32,0.00016712,2]
[338568555,1726739449954,-1465.29,0.00016712,2]
[338568556,1726739449963,-923.25,0.00016712,2]
[338568557,1726739449972,-925.757886,0.00016712,2]
[338568558,1726739449982,-500.0,0.00016712,2]
[338568559,1726739449991,-925.757886,0.00016712,2]
[338568560,1726739450000,-500.0,0.00016712,2]
[338568561,1726739450011,-925.757886,0.00016712,2]
[338568562,1726739450020,-925.757886,0.00016712,2]
[338568563,1726739450030,-346.92,0.00016712,2]
[338568564,1726739450039,-500.0,0.00016712,2]
[338568565,1726739450049,-243.17,0.00016712,2]
[338568566,1726739450059,-500.0,0.00016712,2]
[338568567,1726739450068,-532.50545567,0.00016712,2]
[338568568,1726739450077,-515.04,0.00016712,2]
[338568569,1726739450086,-972.51,0.00016712,2]
[338568570,1726739450095,-500.0,0.00016712,2]
[338568571,1726739450105,-2399.671957,0.00016712,2]
[338568572,1726739450217,-1065.94,0.00016712,2]
[338568573,1726739450228,-500.0,0.00016712,2]
[338568574,1726739450238,-694.42,0.00016712,2]
[338568575,1726739450247,-500.0,0.00016712,2]
[338568576,1726739450257,-777.38,0.00016712,2]
[338568577,1726739450266,-500.0,0.00016712,2]
[338568578,1726739450276,-500.0,0.00016712,2]
[338568579,1726739450286,-500.229989,0.00016712,2]
[338568580,1726739450295,-151.0,0.00016712,2]
[338568581,1726739450304,-500.0,0.00016712,2]
[338568582,1726739450314,-500.229989,0.00016712,2]
[338568583,1726739450324,-500.229989,0.00016712,2]
[338568584,1726739450335,-962.98,0.00016712,2]
[338568585,1726739450344,-500.0,0.00016712,2]
[338568586,1726739450353,-500.0,0.00016712,2]
[338568587,1726739450364,-500.0,0.00016712,2]
[338568588,1726739450374,-500.0,0.00016712,2]
[338568589,1726739450384,-2156.7,0.00016712,2]
[338568590,1726739450394,-500.229989,0.00016712,2]
[338568591,1726739450404,-500.229989,0.00016712,2]
[338568592,1726739450414,-500.229989,0.00016712,2]
[338568593,1726739450424,-709.43,0.00016712,2]
[338568594,1726739450434,-1459.536,0.00016712,2]
[338568595,1726739450443,-1459.536,0.00016712,2]
[338568596,1726739450452,-1459.536,0.00016712,2]
[338568597,1726739450462,-151.0,0.00016712,2]
[338568598,1726739450473,-151.0,0.00016712,2]
[338568599,1726739450482,-151.0,0.00016712,2]
[338568600,1726739450493,-1459.536,0.00016712,2]
[338568601,1726739450502,-1459.536,0.00016712,2]
[338568602,1726739450512,-1459.536,0.00016712,2]
[338568603,1726739450522,-500.0,0.00016712,2]
[338568604,1726739450531,-500.0,0.00016712,2]
[338568605,1726739450541,-518.83,0.00016712,2]
[338568606,1726739450550,-1978.31,0.00016712,2]
[338568607,1726739450560,-500.0,0.00016712,2]
[338568608,1726739450569,-500.0,0.00016712,2]
[338568609,1726739450579,-511.26,0.00016712,2]
[338568610,1726739450588,-213.77734259,0.00016712,2]
[338568611,1726739450598,-500.0,0.00016712,2]
[338568612,1726739450609,-500.0,0.00016712,2]
[338568613,1726739450618,-843.87,0.00016712,2]
[338568614,1726739450627,-500.0,0.00016712,2]